fUST/lending_fUST_20250618
["ID","MTS","AMOUNT","RATE_DAILY","PERIOD"]
[366310869,1750182639009,-498.9,0.00021917,6]
[366310871,1750182639019,-460.0,0.00021917,6]
[366310873,1750182639028,-478.84257984,0.00021917,6]
[366310875,1750182639038,-460.0,0.00021917,6]
[366310877,1750182639048,-460.0,0.00021917,6]
[366310879,1750182639056,-447.99994809,0.00021917,6]
[366310881,1750182639066,-460.0,0.00021917,6]
[366310883,1750182639076,-586.32868557,0.00021917,6]
[366310885,1750182639085,-430.0,0.00021917,6]
[366310887,1750182639095,-477.46,0.00021917,6]
[366310889,1750182639104,-460.0,0.00021917,6]
[366310891,1750182639114,-460.0,0.00021917,6]
[366310893,1750182639123,-460.0,0.00021917,6]
[366310895,1750182639133,-460.0,0.00021917,6]
[366310897,1750182639143,-354.25513656,0.00021917,6]
[366310899,1750182639152,-8688.06,0.00021917,6]
[366310901,1750182639162,-460.0,0.00021917,6]
[366310903,1750182639172,-460.0,0.00021917,6]
[366310905,1750182639182,-460.0,0.00021917,6]
[366310907,1750182639191,-501.77666421,0.00021917,6]
[366310909,1750182639201,-460.0,0.00021917,6]
[366310911,1750182639211,-410.0,0.00021917,6]
[366310912,1750182639220,-460.0,0.00021917,6]
[366310914,1750182639229,-892.19,0.00021917,6]
[366310916,1750182639239,-460.0,0.00021917,6]
[366310918,1750182639248,-460.0,0.00021917,6]
[366310920,1750182639257,-460.0,0.00021917,6]
[366310922,1750182639266,-1996.05,0.00021917,6]
[366310924,1750182639275,-460.0,0.00021917,6]
[366310926,1750182639284,-430.88540725,0.00021917,6]
[366310928,1750182639294,-460.0,0.00021917,6]
[366310930,1750182639304,-1694.53,0.00021917,6]
[366310932,1750182639314,-460.0,0.00021917,6]
[366310934,1750182639323,-2469.14,0.00021917,6]
[366310937,1750182639333,-460.0,0.00021917,6]
[366310939,1750182639342,-460.0,0.00021917,6]
[366310941,1750182639351,-460.0,0.00021917,6]
[366310944,1750182639360,-460.0,0.00021917,6]
[366310946,1750182639370,-1443.35,0.00021917,6]
[366310948,1750182639381,-460.0,0.00021917,6]
[366310950,1750182639391,-223.80597051,0.00021917,6]
[366310953,1750182639409,-236.19402949,0.00021917,6]
[366310955,1750182639418,-560.26105564,0.00021917,6]
[366311132,1750182642813,-1597.59919671,0.00021917,6]
[366311138,1750182643142,-235.86974765,0.00021917,6]
[366311139,1750182643152,-2393.73,0.00021917,6]
[366311140,1750182643163,-2393.73,0.00021917,6]
[366311141,1750182643172,-533.9,0.00021917,6]
[366311142,1750182643183,-3746.77,0.00021917,6]
[366311143,1750182643192,-2393.73,0.00021917,6]
[366311144,1750182643202,-460.0,0.00021917,6]
[366311146,1750182643211,-2393.73,0.00021917,6]
[366311148,1750182643221,-460.0,0.00021917,6]
[366311150,1750182643230,-460.0,0.00021917,6]
[366311152,1750182643239,-2606.2,0.00021917,6]
[366311154,1750182643248,-456.34196986,0.00021917,6]
[366311156,1750182643257,-460.0,0.00021917,6]
[366311157,1750182643268,-460.0,0.00021917,6]
[366311158,1750182643278,-1453.97,0.00021917,6]
[366311159,1750182643288,-440.87311069,0.00021917,6]
[366311160,1750182643297,-460.0,0.00021917,6]
[366311161,1750182643307,-460.0,0.00021917,6]
[366311162,1750182643316,-460.0,0.00021917,6]
[366311163,1750182643325,-460.0,0.00021917,6]
[366311164,1750182643335,-460.0,0.00021917,6]
[366311165,1750182643344,-460.0,0.00021917,6]
[366311166,1750182643354,-1888.3,0.00021917,6]
[366311167,1750182643364,-1567.04,0.00021917,6]
[366311168,1750182643373,-460.0,0.00021917,6]
[366311169,1750182643384,-460.0,0.00021917,6]
[366311170,1750182643393,-460.0,0.00021917,6]
[366311171,1750182643403,-3013.93,0.00021917,6]
[366311172,1750182643412,-460.0,0.00021917,6]
[366311173,1750182643422,-460.0,0.00021917,6]
[366311174,1750182643432,-460.0,0.00021917,6]
[366311175,1750182643442,-1618.74,0.00021917,6]
[366311176,1750182643452,-445.34452072,0.00021917,6]
[366311177,1750182643461,-432.77074467,0.00021917,6]
[366311178,1750182643471,-460.0,0.00021917,6]
[366311179,1750182643480,-460.0,0.00021917,6]
[366311180,1750182643490,-460.0,0.00021917,6]
[366311181,1750182643500,-460.0,0.00021917,6]
[366311182,1750182643509,-460.0,0.00021917,6]
[366311183,1750182643519,-460.0,0.00021917,6]
[366311184,1750182643529,-460.0,0.00021917,6]
[366311185,1750182643539,-460.0,0.00021917,6]
[366311186,1750182643549,-3747.01,0.00021917,6]
[366311187,1750182643560,-460.0,0.00021917,6]
[366311188,1750182643569,-460.0,0.00021917,6]
[366311189,1750182643579,-460.0,0.00021917,6]
[366311190,1750182643589,-466.67,0.00021917,6]
[366311191,1750182643599,-659.05,0.00021917,6]
[366311192,1750182643608,-460.0,0.00021917,6]
[366311193,1750182643621,-370.0,0.00021917,6]
[366311194,1750182643634,-2297.64,0.00021917,6]
[366311195,1750182643644,-460.0,0.00021917,6]
[366311196,1750182643654,-460.0,0.00021917,6]
[366311197,1750182643665,-460.0,0.00021917,6]
[366311198,1750182643675,-500.0,0.00021917,6]
[366311199,1750182643685,-460.0,0.00021917,2]
[366311200,1750182643695,-1821.31,0.00021917,6]
[366311201,1750182643706,-460.0,0.00021917,6]
[366311202,1750182643716,-460.0,0.00021917,6]
[366311203,1750182643726,-780.72,0.00021917,6]
[366311204,1750182643735,-458.38151557,0.00021917,6]
[366311205,1750182643745,-460.0,0.00021917,6]
[366311206,1750182643756,-437.6567793,0.00021917,6]
[366311207,1750182643766,-460.0,0.00021917,6]
[366311208,1750182643776,-849.56,0.00021917,6]
[366311209,1750182643787,-460.0,0.00021917,6]
[366311210,1750182643799,-4481.52,0.00021917,6]
[366311211,1750182643809,-460.0,0.00021917,6]
[366311212,1750182643820,-460.0,0.00021917,6]
[366311213,1750182643829,-460.0,0.00021917,6]
[366311214,1750182643839,-460.0,0.00021917,6]
[366311215,1750182643850,-460.0,0.00021917,6]
[366311216,1750182643860,-524.71,0.00021917,6]
[366311217,1750182643869,-1210.17,0.00021917,6]
[366311218,1750182643879,-384.612841,0.00021917,6]
[366311219,1750182643892,-460.0,0.00021917,6]
[366311220,1750182643902,-460.0,0.00021917,6]
[366311221,1750182643912,-460.0,0.00021917,6]
[366311222,1750182643922,-500.0,0.00021917,6]
[366311223,1750182643931,-472.84290823,0.00021917,6]
[366311224,1750182643941,-460.0,0.00021917,6]
[366311225,1750182643952,-460.0,0.00021917,6]
[366311226,1750182643962,-337.62674489,0.00021917,6]
[366311227,1750182643972,-1725.2,0.00021917,6]
[366311228,1750182643981,-447.76309123,0.00021917,6]
[366311229,1750182643991,-460.0,0.00021917,6]
[366311230,1750182644001,-460.0,0.00021917,6]
[366311231,1750182644011,-460.0,0.00021917,6]
[366311232,1750182644020,-437.11489043,0.00021917,6]
[366311233,1750182644029,-1394.81,0.00021917,6]
[366311234,1750182644039,-460.0,0.00021917,6]
[366311235,1750182644049,-460.0,0.00021917,6]
[366311236,1750182644059,-460.0,0.00021917,6]
[366311237,1750182644069,-556.55,0.00021917,6]
[366311238,1750182644079,-460.0,0.00021917,6]
[366311239,1750182644089,-460.0,0.00021917,6]
[366311240,1750182644098,-360.0,0.00021917,6]
[366311241,1750182644108,-460.0,0.00021917,6]
[366311242,1750182644118,-2717.29,0.00021917,6]
[366311243,1750182644127,-460.0,0.00021917,6]
[366311244,1750182644140,-440.0,0.00021917,6]
[366311245,1750182644150,-1513.93,0.00021917,6]
[366311246,1750182644160,-460.0,0.00021917,6]
[366311247,1750182644170,-460.0,0.00021917,6]
[366311248,1750182644179,-756.65,0.00021917,6]
[366311249,1750182644189,-615.3,0.00021917,6]
[366311250,1750182644198,-460.0,0.00021917,6]
[366311251,1750182644208,-466.04,0.00021917,6]
[366311252,1750182644218,-460.0,0.00021917,6]
[366311253,1750182644227,-460.0,0.00021917,6]
[366311254,1750182644236,-460.0,0.00021917,6]
[366311255,1750182644246,-460.0,0.00021917,6]
[366311256,1750182644255,-460.0,0.00021917,6]
[366311257,1750182644265,-676.83,0.00021917,6]
[366311258,1750182644274,-460.0,0.00021917,6]
[366311259,1750182644284,-460.0,0.00021917,6]
[366311260,1750182644293,-474.52452538,0.00021917,6]
[366311261,1750182644303,-431.55632666,0.00021917,6]
[366311262,1750182644312,-460.0,0.00021917,6]
[366311263,1750182644322,-460.0,0.00021917,6]
[366311264,1750182644331,-849.67,0.00021917,6]
[366311265,1750182644341,-460.0,0.00021917,6]
[366311266,1750182644350,-440.0,0.00021917,6]
[366311267,1750182644360,-420.0,0.00021917,6]
[366311268,1750182644369,-460.0,0.00021917,6]
[366311269,1750182644381,-387.8954893,0.00021917,6]
[366311270,1750182644390,-460.0,0.00021917,6]
[366311271,1750182644402,-460.0,0.00021917,6]
[366311272,1750182644411,-503.24745646,0.00021917,6]
[366311273,1750182644421,-569.62928079,0.00021917,6]
[366311274,1750182644431,-460.0,0.00021917,6]
[366311275,1750182644440,-2158.96,0.00021917,6]
[366311276,1750182644450,-460.0,0.00021917,6]
[366311277,1750182644459,-432.17067932,0.00021917,6]
[366311278,1750182644469,-460.0,0.00021917,6]
[366311279,1750182644479,-523.59134174,0.00021917,6]
[366311280,1750182644489,-460.0,0.00021917,6]
[366311281,1750182644498,-460.0,0.00021917,6]
[366311282,1750182644508,-460.0,0.00021917,6]
[366311283,1750182644517,-460.0,0.00021917,6]
[366311284,1750182644527,-494.89,0.00021917,6]
[366311285,1750182644537,-460.0,0.00021917,6]
[366311286,1750182644547,-218.15013796,0.00021917,6]
[366311287,1750182644557,-506.09528701,0.00021917,6]
[366311288,1750182644567,-460.0,0.00021917,6]
[366311289,1750182644577,-460.0,0.00021917,6]
[366311290,1750182644587,-370.0,0.00021917,6]
[366311291,1750182644597,-500.87992906,0.00021917,6]
[366311292,1750182644607,-6257.4,0.00021917,6]
[366311293,1750182644616,-460.0,0.00021917,6]
[366311294,1750182644635,-460.0,0.00021917,6]
[366311295,1750182644645,-724.1,0.00021917,6]
[366311296,1750182644655,-460.0,0.00021917,6]
[366311297,1750182644666,-1027.52,0.00021917,6]
[366311298,1750182644675,-460.0,0.00021917,6]
[366311299,1750182644685,-460.0,0.00021917,6]
[366311300,1750182644695,-797.1,0.00021917,6]
[366311301,1750182644705,-580.91417124,0.00021917,6]
[366311302,1750182644715,-1112.01,0.00021917,6]
[366311303,1750182644724,-460.0,0.00021917,6]
[366311304,1750182644734,-460.0,0.00021917,6]
[366311305,1750182644744,-460.0,0.00021917,6]
[366311306,1750182644753,-410.0,0.00021917,6]
[366311307,1750182644762,-1044.65,0.00021917,6]
[366311308,1750182644772,-585.6377047,0.00021917,6]
[366311309,1750182644781,-460.0,0.00021917,6]
[366311310,1750182644791,-1387.35,0.00021917,6]
[366311311,1750182644800,-460.0,0.00021917,6]
[366311312,1750182644809,-212.34259664,0.00021917,6]
[366311313,1750182644819,-460.0,0.00021917,6]
[366311314,1750182644828,-460.0,0.00021917,6]
[366311315,1750182644837,-460.0,0.00021917,6]
[366311316,1750182644847,-460.0,0.00021917,6]
[366311317,1750182644856,-762.1,0.00021917,6]
[366311318,1750182644866,-5152.13,0.00021917,6]
[366311319,1750182644876,-960.38,0.00021917,6]
[366311320,1750182644887,-460.0,0.00021917,6]
[366311321,1750182644896,-401.85675123,0.00021917,6]
[366311322,1750182644905,-460.0,0.00021917,6]
[366311323,1750182644915,-460.0,0.00021917,6]
[366311324,1750182644924,-460.0,0.00021917,6]
[366311325,1750182644934,-460.0,0.00021917,6]
[366311326,1750182644944,-460.0,0.00021917,6]
[366311327,1750182644953,-460.0,0.00021917,6]
[366311328,1750182644963,-460.0,0.00021917,6]
[366311329,1750182644972,-460.0,0.00021917,6]
[366311330,1750182644981,-571.99,0.00021917,6]
[366311331,1750182644991,-460.0,0.00021917,6]
[366311332,1750182645002,-440.0,0.00021917,6]
[366311333,1750182645011,-601.08904228,0.00021917,6]
[366311334,1750182645020,-460.0,0.00021917,6]
[366311335,1750182645029,-460.0,0.00021917,6]
[366311336,1750182645039,-625.12,0.00021917,6]
[366311337,1750182645048,-30.60417705,0.00021917,6]
[366311338,1750182645064,-429.98165559,0.00021917,6]
[366311339,1750182645073,-460.0,0.00021917,6]
[366311340,1750182645083,-1629.72,0.00021917,6]
[366311341,1750182645092,-861.08,0.00021917,6]
[366311342,1750182645101,-460.0,0.00021917,6]
[366311343,1750182645111,-558.42,0.00021917,6]
[366311344,1750182645120,-460.0,0.00021917,6]
[366311345,1750182645133,-460.0,0.00021917,6]
[366311346,1750182645143,-460.0,0.00021917,6]
[366311347,1750182645152,-460.0,0.00021917,6]
[366311348,1750182645162,-500.0,0.00021917,2]
[366311349,1750182645173,-460.0,0.00021917,6]
[366311350,1750182645183,-500.0,0.00021917,2]
[366311351,1750182645193,-460.0,0.00021917,6]
[366311352,1750182645203,-500.0,0.00021917,2]
[366311353,1750182645212,-507.60319211,0.00021917,2]
[366311354,1750182645223,-460.0,0.00021917,6]
[366311355,1750182645234,-460.0,0.00021917,6]
[366311356,1750182645244,-460.0,0.00021917,6]
[366311357,1750182645253,-460.0,0.00021917,6]
[366311358,1750182645263,-460.0,0.00021917,6]
[366311359,1750182645273,-460.0,0.00021917,6]
[366311360,1750182645283,-407.74457464,0.00021917,6]
[366311361,1750182645292,-1669.29,0.00021917,6]
[366311362,1750182645301,-457.03104692,0.00021917,6]
[366311363,1750182645311,-1106.91,0.00021917,2]
[366311364,1750182645321,-460.0,0.00021917,6]
[366311365,1750182645331,-460.0,0.00021917,6]
[366311366,1750182645340,-460.0,0.00021917,6]
[366311367,1750182645350,-460.0,0.00021917,6]
[366311368,1750182645359,-460.0,0.00021917,6]
[366311369,1750182645369,-460.0,0.00021917,6]
[366311370,1750182645378,-460.0,0.00021917,6]
[366311371,1750182645391,-460.0,0.00021917,6]
[366311372,1750182645400,-422.79873476,0.00021917,6]
[366311373,1750182645409,-378.47710096,0.00021917,6]
[366311374,1750182645419,-430.0,0.00021917,6]
[366311375,1750182645428,-460.0,0.00021917,6]
[366311376,1750182645437,-460.0,0.00021917,6]
[366311377,1750182645447,-416.11999583,0.00021917,6]
[366311378,1750182645456,-460.0,0.00021917,6]
[366311379,1750182645465,-460.0,0.00021917,6]
[366311380,1750182645475,-199.335582,0.00021917,6]
[366311381,1750182645484,-440.0,0.00021917,6]
[366311382,1750182645493,-460.0,0.00021917,6]
[366311383,1750182645503,-344.0,0.00021944,2]
[366311384,1750182645512,-460.0,0.00021985,6]
[366311385,1750182645521,-500.0,0.00021985,6]
[366311386,1750182645531,-500.0,0.00021985,6]
[366311387,1750182645542,-554.19641113,0.00021985,6]
[366311388,1750182645551,-2393.73,0.00021985,6]
[366311389,1750182645561,-2393.73,0.00021985,6]
[366311390,1750182645571,-2393.73,0.00021985,6]
[366311391,1750182645580,-2393.73,0.00021985,6]
[366311392,1750182645590,-2393.73,0.00021985,6]
[366311393,1750182645599,-500.0,0.00021985,6]
[366311394,1750182645609,-460.0,0.00021986,6]
[366311395,1750182645621,-460.0,0.00021986,6]
[366311396,1750182645750,-460.0,0.00021986,6]
[366311398,1750182645759,-460.0,0.00021986,6]
[366311400,1750182645769,-460.0,0.00021986,6]
[366311402,1750182645779,-460.0,0.00021986,6]
[366311404,1750182645788,-460.0,0.00021986,6]
[366311406,1750182645798,-460.0,0.00021986,6]
[366311408,1750182645807,-460.0,0.00021986,6]
[366311410,1750182645816,-460.0,0.00021986,6]
[366311412,1750182645825,-460.0,0.00021986,6]
[366311414,1750182645835,-460.0,0.00021986,6]
[366311416,1750182645844,-411.91899273,0.00021986,6]
[366311418,1750182645854,-402.62581873,0.00021986,6]
[366311420,1750182645864,-460.0,0.00021986,6]
[366311422,1750182645873,-460.0,0.00021986,6]
[366311424,1750182645883,-460.0,0.00021986,6]
[366311426,1750182645892,-460.0,0.00021986,6]
[366311428,1750182645902,-460.0,0.00021986,6]
[366311430,1750182645911,-460.0,0.00021986,6]
[366311431,1750182645920,-460.0,0.00021986,6]
[366311432,1750182645929,-460.0,0.00021986,6]
[366311433,1750182645939,-431.51044296,0.00021986,6]
[366311434,1750182645948,-460.0,0.00021986,6]
[366311435,1750182645959,-460.0,0.00021986,6]
[366311436,1750182645969,-460.0,0.00021986,6]
[366311437,1750182645978,-460.0,0.00021986,6]
[366311438,1750182645987,-289.02938303,0.00021986,6]
[366311439,1750182645997,-406.90336886,0.00021986,6]
[366311440,1750182646006,-336.65369974,0.00021986,6]
[366311441,1750182646019,-123.34630026,0.00021986,6]
[366311442,1750182646028,-460.0,0.00021986,6]
[366311443,1750182646037,-504.59721843,0.00021986,6]
[366311444,1750182646046,-460.0,0.00021986,6]
[366311445,1750182646056,-460.0,0.00021986,6]
[366311446,1750182646065,-527.23078103,0.00021986,6]
[366311447,1750182646074,-400.92573595,0.00021986,6]
[366311448,1750182646083,-460.0,0.00021986,6]
[366311449,1750182646093,-411.20734643,0.00021986,6]
[366311450,1750182646103,-460.0,0.00021986,6]
[366311451,1750182646113,-460.0,0.00021986,6]
[366311452,1750182646122,-460.0,0.00021986,6]
[366311453,1750182646132,-460.0,0.00021986,6]
[366311454,1750182646141,-460.0,0.00021986,6]
[366311455,1750182646151,-623.11181275,0.00021986,6]
[366311456,1750182646161,-460.0,0.00021986,6]
[366311457,1750182646170,-539.95755019,0.00021986,6]
[366311458,1750182646179,-460.0,0.00021986,6]
[366311459,1750182646189,-443.59996304,0.00021986,6]
[366311460,1750182646200,-460.0,0.00021986,6]
[366311461,1750182646209,-308.01891494,0.00021986,6]
[366311462,1750182646218,-460.0,0.00021986,6]
[366311463,1750182646228,-540.13168472,0.00021986,6]
[366311464,1750182646238,-517.28615987,0.00021986,6]
[366311465,1750182646248,-400.61325322,0.00021986,6]
[366311466,1750182646257,-157.87589294,0.00021986,6]
[366311467,1750182646267,-200.70049308,0.00021986,6]
[366311468,1750182646276,-460.0,0.00021986,6]
[366311469,1750182646285,-460.0,0.00021986,6]
[366311470,1750182646294,-460.0,0.00021986,6]
[366311471,1750182646304,-598.41627172,0.00021986,6]
[366311472,1750182646313,-460.0,0.00021986,6]
[366311473,1750182646322,-460.0,0.00021986,6]
[366311474,1750182646332,-460.0,0.00021986,6]
[366311475,1750182646341,-460.0,0.00021986,6]
[366311476,1750182646351,-938.25,0.00021986,6]
[366311477,1750182646360,-328.55862143,0.00021986,6]
[366311478,1750182646372,-131.44137857,0.00021986,6]
[366311479,1750182646383,-460.0,0.00021986,6]
[366311480,1750182646392,-460.0,0.00021986,6]
[366311481,1750182646401,-460.0,0.00021986,6]
[366311482,1750182646411,-460.0,0.00021986,6]
[366311483,1750182646419,-460.0,0.00021986,6]
[366311484,1750182646429,-440.0,0.00021986,6]
[366311485,1750182646439,-460.0,0.00021986,6]
[366311486,1750182646449,-460.0,0.00021986,6]
[366311487,1750182646458,-460.0,0.00021986,6]
[366311488,1750182646468,-460.0,0.00021986,6]
[366311489,1750182646477,-460.0,0.00021986,6]
[366311490,1750182646486,-460.0,0.00021986,6]
[366311491,1750182646495,-54.37630143,0.00021986,6]
[366311492,1750182646507,-479.81369857,0.00021986,6]
[366311493,1750182646516,-364.19130143,0.00021986,6]
[366311494,1750182647018,-500.0,0.00021915,2]
[366311495,1750182647029,-500.0,0.00021915,2]
[366311496,1750182647043,-460.0,0.00021917,6]
[366311497,1750182647055,-500.0,0.00021917,2]
[366311498,1750182647070,-460.0,0.00021917,6]
[366311499,1750182647083,-460.0,0.00021917,6]
[366311500,1750182647096,-460.0,0.00021917,6]
[366311501,1750182647109,-440.0,0.00021917,6]
[366311502,1750182647122,-95.80869857,0.00021986,6]
[366311503,1750182647138,-460.0,0.00021986,6]
[366311504,1750182647358,-460.0,0.00021986,6]
[366311505,1750182647371,-420.0,0.00021986,6]
[366311506,1750182647384,-460.0,0.00021986,6]
[366311507,1750182647395,-460.0,0.00021986,6]
[366311508,1750182647407,-460.0,0.00021986,6]
[366311509,1750182647421,-461.87243434,0.00021986,6]
[366311510,1750182647433,-460.0,0.00021986,6]
[366311511,1750182647444,-460.0,0.00021986,6]
[366311512,1750182647455,-460.0,0.00021986,6]
[366311513,1750182647467,-460.0,0.00021986,6]
[366311514,1750182647477,-460.0,0.00021986,6]
[366311515,1750182647490,-460.0,0.00021986,6]
[366311516,1750182647502,-460.0,0.00021986,6]
[366311517,1750182647514,-460.0,0.00021986,6]
[366311518,1750182647526,-158.6829329,0.00021986,6]
[366311519,1750182647539,-460.0,0.00021986,6]
[366311520,1750182647551,-460.0,0.00021986,6]
[366311521,1750182647565,-460.0,0.00021986,6]
[366311522,1750182647576,-460.0,0.00021986,6]
[366311523,1750182647586,-460.0,0.00021986,6]
[366311524,1750182647596,-460.0,0.00021986,6]
[366311525,1750182647607,-460.0,0.00021986,6]
[366311526,1750182647619,-460.0,0.00021986,6]
[366311527,1750182647638,-548.2,0.00021986,6]
[366311528,1750182647651,-460.0,0.00021986,6]
[366311529,1750182647663,-460.0,0.00021986,6]
[366311530,1750182647674,-464.33495317,0.00021986,6]
[366311531,1750182647686,-531.31,0.00021986,6]
[366311532,1750182647698,-460.0,0.00021986,6]
[366311533,1750182647710,-460.0,0.00021986,6]
[366311534,1750182647721,-460.0,0.00021986,6]
[366311535,1750182647731,-460.0,0.00021986,6]
[366311536,1750182647743,-500.0,0.00021986,6]
[366311537,1750182647755,-1075.26,0.00021986,6]
[366311538,1750182647767,-1000.0,0.00021986,6]
[366311539,1750182647779,-460.0,0.00021986,6]
[366311540,1750182647790,-435.78651546,0.00021986,6]
[366311541,1750182647801,-460.0,0.00021986,6]
[366311542,1750182647813,-276.96288107,0.00021986,6]
[366311543,1750182647824,-460.0,0.00021986,6]
[366311544,1750182647835,-460.0,0.00021986,6]
[366311545,1750182647846,-460.0,0.00021986,6]
[366311546,1750182647858,-460.0,0.00021986,6]
[366311547,1750182647869,-423.37662037,0.00021986,6]
[366311548,1750182647880,-460.0,0.00021986,6]
[366311549,1750182647894,-460.0,0.00021986,6]
[366311550,1750182647905,-460.0,0.00021986,6]
[366311551,1750182647916,-500.0,0.00021986,6]
[366311552,1750182647927,-500.0,0.00021986,6]
[366311553,1750182647938,-460.0,0.00021986,6]
[366311554,1750182647950,-460.0,0.00021986,6]
[366311555,1750182647962,-460.0,0.00021986,6]
[366311556,1750182647973,-430.0,0.00021986,6]
[366311557,1750182647984,-159.39929833,0.00021986,6]
[366311558,1750182647995,-460.0,0.00021986,6]
[366311559,1750182648006,-460.0,0.00021986,6]
[366311560,1750182648018,-460.0,0.00021986,6]
[366311561,1750182648029,-460.0,0.00021986,6]
[366311562,1750182648040,-460.0,0.00021986,6]
[366311563,1750182648052,-430.23911861,0.00021986,6]
[366311564,1750182648064,-460.0,0.00021986,6]
[366311565,1750182648075,-1093.83,0.00021986,6]
[366311566,1750182648087,-543.77327371,0.00021986,6]
[366311567,1750182648098,-460.0,0.00021986,6]
[366311568,1750182648109,-311.80706141,0.00021986,6]
[366311569,1750182648121,-460.0,0.00021986,6]
[366311570,1750182648132,-438.01766789,0.00021986,6]
[366311571,1750182648143,-460.0,0.00021986,6]
[366311572,1750182648155,-460.0,0.00021986,6]
[366311573,1750182648167,-406.27023467,0.00021986,6]
[366311574,1750182648179,-460.0,0.00021986,6]
[366311575,1750182648190,-460.0,0.00021986,6]
[366311576,1750182648202,-460.0,0.00021986,6]
[366311577,1750182648213,-226.53535668,0.00021986,6]
[366311578,1750182648225,-460.0,0.00021986,6]
[366311579,1750182648236,-460.0,0.00021986,6]
[366311580,1750182648248,-584.57928508,0.00021986,6]
[366311581,1750182648260,-460.0,0.00021986,6]
[366311582,1750182648271,-460.0,0.00021986,6]
[366311583,1750182648283,-205.93978856,0.00021986,6]
[366311584,1750182648295,-460.0,0.00021986,6]
[366311585,1750182648306,-560.77469284,0.00021986,6]
[366311586,1750182648318,-460.0,0.00021986,6]
[366311587,1750182648329,-460.0,0.00021986,6]
[366311588,1750182648341,-460.0,0.00021986,6]
[366311589,1750182648353,-460.0,0.00021986,6]
[366311590,1750182648365,-460.0,0.00021986,6]
[366311591,1750182648377,-460.0,0.00021986,6]
[366311592,1750182648389,-460.0,0.00021986,6]
[366311593,1750182648401,-460.0,0.00021986,6]
[366311594,1750182648413,-276.66683139,0.00021986,6]
[366311595,1750182924184,1000.0,0.00024657,120]
[366311596,1750182948431,1000.0,0.00023,30]
[366311597,1750182958263,1000.0,0.00023,30]
[366311598,1750182965212,384.753705,0.00013699,2]
[366311599,1750182972621,1000.0,0.00024657,120]
[366311600,1750182981969,1000.0,0.00024657,120]
[366311601,1750182997257,501.41206443,0.00023,30]
[366311603,1750183362258,2637.98,0.00023,30]
[366311605,1750183573671,721.55743922,0.00013699,2]
[366311628,1750183831841,-4116.59896023,0.00019392,2]
[366311645,1750183831999,-883.40103977,0.00019392,2]
[366311647,1750183832009,-145.65482731,0.00019988,2]
[366311650,1750183832020,-36.44990369,0.00019988,2]
[366311651,1750183832031,-1200.0,0.00020051,2]
[366311673,1750183832217,-300.0,0.00020052,2]
[366311675,1750183832227,-300.0,0.00020052,2]
[366311678,1750183832237,-300.0,0.00020052,2]
[366311680,1750183832246,-300.0,0.00020052,2]
[366311682,1750183832256,-300.0,0.00020053,2]
[366311684,1750183832266,-6334.5164377,0.00020055,2]
[366311686,1750183832275,-202.094326,0.00020186,2]
[366311688,1750183832284,-384.753705,0.00020187,2]